fUST/lending_fUST_20260601
["ID","MTS","AMOUNT","RATE_DAILY","PERIOD"]
[423578660,1780248643000,-559.57,0.00017189,2]
[423578655,1780248643000,-500.0,0.00016949,2]
[423578659,1780248643000,-494.10105786,0.00017111,2]
[423578658,1780248643000,-172.64,0.00016993,2]
[423578661,1780248643000,-1028.27,0.00017189,2]
[423578664,1780248643000,-500.0,0.0001719,2]
[423578665,1780248643000,-500.0,0.0001719,2]
[423578663,1780248643000,-500.0,0.00017189,2]
[423578670,1780248643000,-1348.75,0.0001722,2]
[423578671,1780248643000,-500.0,0.0001722,2]
[423578669,1780248643000,-500.0,0.0001722,2]
[423578682,1780248643000,-500.0,0.0001722,2]
[423578680,1780248643000,-500.0,0.0001722,2]
[423578668,1780248643000,-500.0,0.0001719,2]
[423578642,1780248643000,-596.998347,0.00016947,2]
[423578572,1780248643000,-500.0,0.00016947,2]
[423578639,1780248643000,-596.998347,0.00016947,2]
[423578681,1780248643000,-500.0,0.0001722,2]
[423578574,1780248643000,-223.804875,0.00016947,2]
[423578576,1780248643000,-500.0,0.00016947,2]
[423578578,1780248643000,-542.05,0.00016947,2]
[423578582,1780248643000,-223.804875,0.00016947,2]
[423578600,1780248643000,-500.0,0.00016947,2]
[423578598,1780248643000,-500.0,0.00016947,2]
[423578592,1780248643000,-500.0,0.00016947,2]
[423578584,1780248643000,-223.804875,0.00016947,2]
[423578590,1780248643000,-500.0,0.00016947,2]
[423578580,1780248643000,-223.804875,0.00016947,2]
[423578596,1780248643000,-327.892484,0.00016947,2]
[423578594,1780248643000,-327.892484,0.00016947,2]
[423578640,1780248643000,-303.145799,0.00016947,2]
[423578588,1780248643000,-500.0,0.00016947,2]
[423578602,1780248643000,-327.892484,0.00016947,2]
[423578617,1780248643000,-572.53,0.00016947,2]
[423578611,1780248643000,-500.0,0.00016947,2]
[423578623,1780248643000,-603.85,0.00016947,2]
[423578615,1780248643000,-500.91706665,0.00016947,2]
[423578604,1780248643000,-500.0,0.00016947,2]
[423578620,1780248643000,-500.0,0.00016947,2]
[423578613,1780248643000,-500.0,0.00016947,2]
[423578606,1780248643000,-327.892484,0.00016947,2]
[423578608,1780248643000,-817.3533,0.00016947,2]
[423578625,1780248643000,-500.0,0.00016947,2]
[423578627,1780248643000,-500.0,0.00016947,2]
[423578629,1780248643000,-303.145799,0.00016947,2]
[423578586,1780248643000,-500.27015423,0.00016947,2]
[423578672,1780248643000,-500.0,0.0001722,2]
[423578728,1780248643000,-500.0,0.00017221,2]
[423578677,1780248643000,-500.0,0.0001722,2]
[423578713,1780248643000,-500.0,0.00017221,2]
[423578710,1780248643000,-596.998347,0.0001722,2]
[423578711,1780248643000,-500.0,0.00017221,2]
[423578717,1780248643000,-500.0,0.00017221,2]
[423578716,1780248643000,-500.0,0.00017221,2]
[423578714,1780248643000,-500.0,0.00017221,2]
[423578718,1780248643000,-500.0,0.00017221,2]
[423578715,1780248643000,-500.0,0.00017221,2]
[423578720,1780248643000,-500.0,0.00017221,2]
[423578730,1780248643000,-500.0,0.00017221,2]
[423578732,1780248643000,-151.0,0.00017221,2]
[423578731,1780248643000,-151.0,0.00017221,2]
[423578721,1780248643000,-500.0,0.00017221,2]
[423578712,1780248643000,-500.0,0.00017221,2]
[423578722,1780248643000,-500.0,0.00017221,2]
[423578724,1780248643000,-500.0,0.00017221,2]
[423578726,1780248643000,-500.0,0.00017221,2]
[423578727,1780248643000,-500.0,0.00017221,2]
[423578729,1780248643000,-500.0,0.00017221,2]
[423578725,1780248643000,-500.0,0.00017221,2]
[423578733,1780248643000,-500.0,0.00017221,2]
[423578736,1780248643000,-151.0,0.00017221,2]
[423578735,1780248643000,-500.0,0.00017221,2]
[423578739,1780248643000,-151.0,0.00017221,2]
[423578738,1780248643000,-151.0,0.00017221,2]
[423578741,1780248643000,-500.0,0.00017221,2]
[423578673,1780248643000,-500.0,0.0001722,2]
[423578734,1780248643000,-151.0,0.00017221,2]
[423578723,1780248643000,-500.0,0.00017221,2]
[423578709,1780248643000,-500.0,0.0001722,2]
[423578719,1780248643000,-500.0,0.00017221,2]
[423578705,1780248643000,-596.998347,0.0001722,2]
[423578674,1780248643000,-552.58,0.0001722,2]
[423578675,1780248643000,-500.0,0.0001722,2]
[423578708,1780248643000,-303.145799,0.0001722,2]
[423578678,1780248643000,-500.0,0.0001722,2]
[423578679,1780248643000,-500.0,0.0001722,2]
[423578676,1780248643000,-500.0,0.0001722,2]
[423578683,1780248643000,-534.45,0.0001722,2]
[423578686,1780248643000,-1567.21,0.0001722,2]
[423578685,1780248643000,-500.0,0.0001722,2]
[423578684,1780248643000,-500.0,0.0001722,2]
[423578688,1780248643000,-223.804875,0.0001722,2]
[423578689,1780248643000,-223.804875,0.0001722,2]
[423578695,1780248643000,-327.892484,0.0001722,2]
[423578691,1780248643000,-500.0,0.0001722,2]
[423578696,1780248643000,-327.892484,0.0001722,2]
[423578687,1780248643000,-223.804875,0.0001722,2]
[423578697,1780248643000,-500.0,0.0001722,2]
[423578707,1780248643000,-596.998347,0.0001722,2]
[423578694,1780248643000,-500.0,0.0001722,2]
[423578703,1780248643000,-596.998347,0.0001722,2]
[423578699,1780248643000,-3745.47,0.0001722,2]
[423578704,1780248643000,-303.145799,0.0001722,2]
[423578701,1780248643000,-500.0,0.0001722,2]
[423578702,1780248643000,-303.145799,0.0001722,2]
[423578706,1780248643000,-303.145799,0.0001722,2]
[423578698,1780248643000,-500.0,0.0001722,2]
[423578692,1780248643000,-327.892484,0.0001722,2]
[423578693,1780248643000,-327.892484,0.0001722,2]
[423578690,1780248643000,-223.804875,0.0001722,2]
[423578700,1780248643000,-1807.05,0.0001722,2]
[423578784,1780248644000,-3398.2632311,0.00017247,2]
[423578785,1780248644000,-3267.8299591,0.00017247,2]
[423578778,1780248644000,-500.0,0.00017221,2]
[423578787,1780248644000,-160.0,0.00017366,2]
[423578779,1780248644000,-603.85,0.00017221,2]
[423578786,1780248644000,-1448.47969,0.00017306,2]
[423578775,1780248644000,-817.3533,0.00017221,2]
[423578783,1780248644000,-611.4849328,0.00017247,2]
[423578781,1780248644000,-500.0,0.00017223,2]
[423578777,1780248644000,-572.53,0.00017221,2]
[423578789,1780248644000,-500.0,0.00017399,2]
[423578780,1780248644000,-500.0,0.00017221,2]
[423578782,1780248644000,-500.0,0.00017223,2]
[423578799,1780248644000,-327.892484,0.00017399,2]
[423578801,1780248644000,-1028.27,0.00017463,2]
[423578791,1780248644000,-151.0,0.00017399,2]
[423578793,1780248644000,-223.804875,0.00017399,2]
[423578788,1780248644000,-500.0,0.00017399,2]
[423578800,1780248644000,-559.57,0.00017463,2]
[423578795,1780248644000,-223.804875,0.00017399,2]
[423578794,1780248644000,-223.804875,0.00017399,2]
[423578797,1780248644000,-327.892484,0.00017399,2]
[423578792,1780248644000,-223.804875,0.00017399,2]
[423578796,1780248644000,-327.892484,0.00017399,2]
[423578802,1780248644000,-500.0,0.00017463,2]
[423578812,1780248644000,-500.0,0.00017494,2]
[423578813,1780248644000,-500.0,0.00017494,2]
[423578814,1780248644000,-552.58,0.00017494,2]
[423578776,1780248644000,-500.0,0.00017221,2]
[423578790,1780248644000,-500.0,0.00017399,2]
[423578769,1780248644000,-500.0,0.00017221,2]
[423578746,1780248644000,-500.0,0.00017221,2]
[423578767,1780248644000,-500.0,0.00017221,2]
[423578805,1780248644000,-500.0,0.00017464,2]
[423578745,1780248644000,-500.0,0.00017221,2]
[423578742,1780248644000,-151.0,0.00017221,2]
[423578744,1780248644000,-500.0,0.00017221,2]
[423578743,1780248644000,-151.0,0.00017221,2]
[423578747,1780248644000,-559.63840184,0.00017221,2]
[423578759,1780248644000,-500.0,0.00017221,2]
[423578749,1780248644000,-500.0,0.00017221,2]
[423578760,1780248644000,-500.0,0.00017221,2]
[423578750,1780248644000,-500.0,0.00017221,2]
[423578754,1780248644000,-500.0,0.00017221,2]
[423578752,1780248644000,-500.0,0.00017221,2]
[423578757,1780248644000,-500.0,0.00017221,2]
[423578751,1780248644000,-500.0,0.00017221,2]
[423578768,1780248644000,-542.05,0.00017221,2]
[423578758,1780248644000,-603.91,0.00017221,2]
[423578748,1780248644000,-500.0,0.00017221,2]
[423578756,1780248644000,-500.0,0.00017221,2]
[423578755,1780248644000,-500.0,0.00017221,2]
[423578761,1780248644000,-500.0,0.00017221,2]
[423578762,1780248644000,-500.0,0.00017221,2]
[423578773,1780248644000,-500.0,0.00017221,2]
[423578772,1780248644000,-500.0,0.00017221,2]
[423578763,1780248644000,-1670.88,0.00017221,2]
[423578766,1780248644000,-500.0,0.00017221,2]
[423578765,1780248644000,-500.0,0.00017221,2]
[423578764,1780248644000,-500.0,0.00017221,2]
[423578774,1780248644000,-557.96923896,0.00017221,2]
[423578771,1780248644000,-500.0,0.00017221,2]
[423578770,1780248644000,-500.0,0.00017221,2]
[423578753,1780248644000,-944.99,0.00017221,2]
[423578809,1780248644000,-500.0,0.00017494,2]
[423578798,1780248644000,-327.892484,0.00017399,2]
[423578806,1780248644000,-500.0,0.00017464,2]
[423578863,1780248644000,-500.0,0.00017495,2]
[423578853,1780248644000,-500.0,0.00017495,2]
[423578849,1780248644000,-500.0,0.00017495,2]
[423578851,1780248644000,-500.0,0.00017495,2]
[423578865,1780248644000,-500.0,0.00017495,2]
[423578861,1780248644000,-500.0,0.00017495,2]
[423578867,1780248644000,-500.0,0.00017495,2]
[423578855,1780248644000,-500.0,0.00017495,2]
[423578869,1780248644000,-500.0,0.00017495,2]
[423578871,1780248644000,-500.0,0.00017495,2]
[423578873,1780248644000,-500.0,0.00017495,2]
[423578883,1780248644000,-151.0,0.00017495,2]
[423578885,1780248644000,-500.0,0.00017495,2]
[423578887,1780248644000,-500.0,0.00017495,2]
[423578859,1780248644000,-500.0,0.00017495,2]
[423578890,1780248644000,-500.0,0.00017495,2]
[423578877,1780248644000,-500.0,0.00017495,2]
[423578892,1780248644000,-500.0,0.00017495,2]
[423578881,1780248644000,-151.0,0.00017495,2]
[423578888,1780248644000,-500.0,0.00017495,2]
[423578891,1780248644000,-500.0,0.00017495,2]
[423578875,1780248644000,-500.0,0.00017495,2]
[423578879,1780248644000,-500.0,0.00017495,2]
[423578898,1780248644000,-500.0,0.00017495,2]
[423578893,1780248644000,-500.0,0.00017495,2]
[423578900,1780248644000,-500.0,0.00017495,2]
[423578894,1780248644000,-500.0,0.00017495,2]
[423578896,1780248644000,-500.0,0.00017495,2]
[423578897,1780248644000,-245.4721892,0.00017495,2]
[423578808,1780248644000,-500.0,0.00017464,2]
[423578889,1780248644000,-500.0,0.00017495,2]
[423578847,1780248644000,-596.99835,0.00017494,2]
[423578895,1780248644000,-500.0,0.00017495,2]
[423578857,1780248644000,-500.0,0.00017495,2]
[423578846,1780248644000,-500.0,0.00017494,2]
[423578811,1780248644000,-500.0,0.00017494,2]
[423578807,1780248644000,-591.15,0.00017464,2]
[423578804,1780248644000,-500.0,0.00017464,2]
[423578803,1780248644000,-500.0,0.00017463,2]
[423578826,1780248644000,-500.0,0.00017494,2]
[423578816,1780248644000,-500.0,0.00017494,2]
[423578815,1780248644000,-500.0,0.00017494,2]
[423578817,1780248644000,-500.0,0.00017494,2]
[423578827,1780248644000,-500.0,0.00017494,2]
[423578818,1780248644000,-413.41470113,0.00017494,2]
[423578819,1780248644000,-500.0,0.00017494,2]
[423578823,1780248644000,-500.0,0.00017494,2]
[423578825,1780248644000,-1567.21,0.00017494,2]
[423578821,1780248644000,-500.0,0.00017494,2]
[423578810,1780248644000,-1348.75,0.00017494,2]
[423578820,1780248644000,-500.0,0.00017494,2]
[423578822,1780248644000,-534.45,0.00017494,2]
[423578832,1780248644000,-500.0,0.00017494,2]
[423578833,1780248644000,-303.145799,0.00017494,2]
[423578834,1780248644000,-596.998347,0.00017494,2]
[423578835,1780248644000,-303.145799,0.00017494,2]
[423578843,1780248644000,-303.145799,0.00017494,2]
[423578837,1780248644000,-596.998347,0.00017494,2]
[423578830,1780248644000,-3745.47,0.00017494,2]
[423578839,1780248644000,-303.145799,0.00017494,2]
[423578831,1780248644000,-1807.05,0.00017494,2]
[423578828,1780248644000,-500.0,0.00017494,2]
[423578824,1780248644000,-500.0,0.00017494,2]
[423578829,1780248644000,-500.0,0.00017494,2]
[423578841,1780248644000,-596.998347,0.00017494,2]
[423578973,1780248645000,-559.57,0.00017737,2]
[423578963,1780248645000,-223.804875,0.00017673,2]
[423578955,1780248645000,-151.0,0.00017496,2]
[423578953,1780248645000,-151.0,0.00017496,2]
[423578957,1780248645000,-151.0,0.00017496,2]
[423578952,1780248645000,-151.0,0.00017496,2]
[423578954,1780248645000,-151.0,0.00017496,2]
[423578958,1780248645000,-151.0,0.00017496,2]
[423578959,1780248645000,-151.0,0.00017496,2]
[423578974,1780248645000,-1028.27,0.00017737,2]
[423578960,1780248645000,-188.0,0.00017496,2]
[423578956,1780248645000,-283.457508,0.00017496,2]
[423578950,1780248645000,-151.0,0.00017496,2]
[423578967,1780248645000,-327.892484,0.00017673,2]
[423578962,1780248645000,-500.0,0.00017673,2]
[423578964,1780248645000,-223.804875,0.00017673,2]
[423578968,1780248645000,-327.892484,0.00017673,2]
[423578966,1780248645000,-223.804879,0.00017673,2]
[423578970,1780248645000,-327.892494,0.00017673,2]
[423578965,1780248645000,-223.804875,0.00017673,2]
[423578971,1780248645000,-250.0,0.00017709,2]
[423578969,1780248645000,-327.892484,0.00017673,2]
[423578976,1780248645000,-500.0,0.00017737,2]
[423578977,1780248645000,-500.0,0.00017738,2]
[423578978,1780248645000,-500.0,0.00017738,2]
[423578980,1780248645000,-591.15,0.00017738,2]
[423578951,1780248645000,-151.0,0.00017496,2]
[423578979,1780248645000,-500.0,0.00017738,2]
[423578975,1780248645000,-500.0,0.00017737,2]
[423578961,1780248645000,-500.0,0.00017673,2]
[423578932,1780248645000,-542.05,0.00017495,2]
[423578946,1780248645000,-151.0,0.00017496,2]
[423578988,1780248645000,-500.0,0.00017768,2]
[423578914,1780248645000,-603.91,0.00017495,2]
[423578902,1780248645000,-500.0,0.00017495,2]
[423578915,1780248645000,-500.0,0.00017495,2]
[423578904,1780248645000,-944.99,0.00017495,2]
[423578906,1780248645000,-500.0,0.00017495,2]
[423578912,1780248645000,-500.0,0.00017495,2]
[423578908,1780248645000,-500.0,0.00017495,2]
[423578930,1780248645000,-500.0,0.00017495,2]
[423578936,1780248645000,-391.72986562,0.00017495,2]
[423578921,1780248645000,-500.0,0.00017495,2]
[423578928,1780248645000,-500.0,0.00017495,2]
[423578919,1780248645000,-500.0,0.00017495,2]
[423578949,1780248645000,-224.520275,0.00017496,2]
[423578917,1780248645000,-500.0,0.00017495,2]
[423578923,1780248645000,-1670.88,0.00017495,2]
[423578924,1780248645000,-500.0,0.00017495,2]
[423578926,1780248645000,-500.0,0.00017495,2]
[423578939,1780248645000,-500.0,0.00017495,2]
[423578938,1780248645000,-500.0,0.00017495,2]
[423578940,1780248645000,-817.3533,0.00017495,2]
[423578942,1780248645000,-572.53,0.00017495,2]
[423578943,1780248645000,-500.0,0.00017495,2]
[423578944,1780248645000,-603.85,0.00017495,2]
[423578948,1780248645000,-151.0,0.00017496,2]
[423578947,1780248645000,-151.0,0.00017496,2]
[423578941,1780248645000,-500.0,0.00017495,2]
[423578945,1780248645000,-500.0,0.00017495,2]
[423578934,1780248645000,-500.0,0.00017495,2]
[423578981,1780248645000,-576.07,0.00017738,2]
[423578910,1780248645000,-500.0,0.00017495,2]
[423578982,1780248645000,-500.0,0.00017768,2]
[423579024,1780248645000,-500.0,0.00017769,2]
[423579023,1780248645000,-1670.88,0.00017769,2]
[423579021,1780248645000,-603.91,0.00017769,2]
[423579019,1780248645000,-944.99,0.00017769,2]
[423579020,1780248645000,-500.0,0.00017769,2]
[423579030,1780248645000,-603.85,0.00017769,2]
[423579025,1780248645000,-500.0,0.00017769,2]
[423579031,1780248645000,-500.0,0.00017769,2]
[423579022,1780248645000,-500.0,0.00017769,2]
[423579027,1780248645000,-817.3533,0.00017769,2]
[423579028,1780248645000,-500.0,0.00017769,2]
[423579026,1780248645000,-542.05,0.00017769,2]
[423579033,1780248645000,-166.66666665,0.00018,2]
[423579035,1780248645000,-1028.27,0.00018011,2]
[423579036,1780248645000,-500.0,0.00018011,2]
[423579043,1780248645000,-1348.75,0.00018042,2]
[423579044,1780248645000,-552.58,0.00018042,2]
[423579039,1780248645000,-500.0,0.00018012,2]
[423579041,1780248645000,-591.15,0.00018012,2]
[423579037,1780248645000,-500.0,0.00018011,2]
[423579038,1780248645000,-500.0,0.00018012,2]
[423579045,1780248645000,-500.0,0.00018042,2]
[423579040,1780248645000,-500.0,0.00018012,2]
[423579034,1780248645000,-559.57,0.00018011,2]
[423579042,1780248645000,-500.0,0.00018042,2]
[423579047,1780248645000,-500.0,0.00018042,2]
[423579046,1780248645000,-500.0,0.00018042,2]
[423579048,1780248645000,-534.45,0.00018042,2]
[423578987,1780248645000,-195.44,0.00017768,2]
[423579032,1780248645000,-1448.47969,0.00017952,2]
[423579029,1780248645000,-572.53,0.00017769,2]
[423579049,1780248645000,-165.68,0.00018042,2]
[423579016,1780248645000,-151.0,0.00017769,2]
[423578983,1780248645000,-1348.75,0.00017768,2]
[423578985,1780248645000,-500.0,0.00017768,2]
[423578984,1780248645000,-552.58,0.00017768,2]
[423578986,1780248645000,-500.0,0.00017768,2]
[423579000,1780248645000,-500.0,0.00017768,2]
[423578989,1780248645000,-534.45,0.00017768,2]
[423579001,1780248645000,-500.0,0.00017769,2]
[423579005,1780248645000,-500.0,0.00017769,2]
[423579015,1780248645000,-360.24,0.00017769,2]
[423579002,1780248645000,-500.0,0.00017769,2]
[423578997,1780248645000,-500.0,0.00017768,2]
[423578991,1780248645000,-500.0,0.00017768,2]
[423578996,1780248645000,-527.48,0.00017768,2]
[423578994,1780248645000,-1567.21,0.00017768,2]
[423579003,1780248645000,-500.0,0.00017769,2]
[423578998,1780248645000,-3745.47,0.00017768,2]
[423578995,1780248645000,-633.96,0.00017768,2]
[423579011,1780248645000,-500.0,0.00017769,2]
[423579014,1780248645000,-500.0,0.00017769,2]
[423579012,1780248645000,-500.0,0.00017769,2]
[423579008,1780248645000,-500.0,0.00017769,2]
[423579009,1780248645000,-500.0,0.00017769,2]
[423579013,1780248645000,-225.84,0.00017769,2]
[423579018,1780248645000,-500.0,0.00017769,2]
[423579017,1780248645000,-190.0,0.00017769,2]
[423579006,1780248645000,-500.0,0.00017769,2]
[423579007,1780248645000,-500.0,0.00017769,2]
[423578999,1780248645000,-1807.05,0.00017768,2]
[423578992,1780248645000,-500.0,0.00017768,2]
[423579010,1780248645000,-500.0,0.00017769,2]
[423579092,1780248646000,-500.0,0.00018316,2]
[423579097,1780248646000,-500.0,0.00018316,2]
[423579091,1780248646000,-591.15,0.00018286,2]
[423579096,1780248646000,-500.0,0.00018316,2]
[423579094,1780248646000,-552.58,0.00018316,2]
[423579086,1780248646000,-500.0,0.00018285,2]
[423579087,1780248646000,-500.0,0.00018285,2]
[423579088,1780248646000,-500.0,0.00018286,2]
[423579085,1780248646000,-1028.27,0.00018285,2]
[423579079,1780248646000,-274.50394,0.00018044,2]
[423579077,1780248646000,-500.0,0.00018043,2]
[423579089,1780248646000,-500.0,0.00018286,2]
[423579095,1780248646000,-500.0,0.00018316,2]
[423579105,1780248646000,-500.0,0.00018317,2]
[423579093,1780248646000,-1348.75,0.00018316,2]
[423579099,1780248646000,-500.0,0.00018316,2]
[423579101,1780248646000,-500.0,0.00018316,2]
[423579104,1780248646000,-167.0595966,0.00018316,2]
[423579109,1780248646000,-500.0,0.00018317,2]
[423579111,1780248646000,-500.0,0.00018317,2]
[423579100,1780248646000,-1567.21,0.00018316,2]
[423579098,1780248646000,-534.45,0.00018316,2]
[423579108,1780248646000,-500.0,0.00018317,2]
[423579103,1780248646000,-1807.05,0.00018316,2]
[423579110,1780248646000,-387.5,0.00018317,2]
[423579102,1780248646000,-3745.47,0.00018316,2]
[423579106,1780248646000,-500.0,0.00018317,2]
[423579082,1780248646000,-823.0,0.00018085,2]
[423579090,1780248646000,-500.0,0.00018286,2]
[423579078,1780248646000,-151.0,0.00018044,2]
[423579059,1780248646000,-500.0,0.00018043,2]
[423579073,1780248646000,-542.05,0.00018043,2]
[423579057,1780248646000,-500.0,0.00018043,2]
[423579052,1780248646000,-500.0,0.00018042,2]
[423579050,1780248646000,-500.0,0.00018042,2]
[423579054,1780248646000,-1807.05,0.00018042,2]
[423579055,1780248646000,-500.0,0.00018042,2]
[423579051,1780248646000,-1567.21,0.00018042,2]
[423579053,1780248646000,-3745.47,0.00018042,2]
[423579056,1780248646000,-500.0,0.00018043,2]
[423579063,1780248646000,-522.92,0.00018043,2]
[423579062,1780248646000,-500.0,0.00018043,2]
[423579060,1780248646000,-500.0,0.00018043,2]
[423579058,1780248646000,-500.0,0.00018043,2]
[423579070,1780248646000,-1670.88,0.00018043,2]
[423579072,1780248646000,-500.0,0.00018043,2]
[423579065,1780248646000,-500.0,0.00018043,2]
[423579069,1780248646000,-500.0,0.00018043,2]
[423579064,1780248646000,-151.0,0.00018043,2]
[423579068,1780248646000,-603.91,0.00018043,2]
[423579067,1780248646000,-500.0,0.00018043,2]
[423579066,1780248646000,-944.99,0.00018043,2]
[423579071,1780248646000,-500.0,0.00018043,2]
[423579081,1780248646000,-151.0,0.00018044,2]
[423579074,1780248646000,-817.3533,0.00018043,2]
[423579083,1780248646000,-166.66666665,0.000182,2]
[423579075,1780248646000,-572.53,0.00018043,2]
[423579080,1780248646000,-151.0,0.00018044,2]
[423579084,1780248646000,-559.57,0.00018285,2]
[423579076,1780248646000,-603.85,0.00018043,2]
[423579061,1780248646000,-500.0,0.00018043,2]
[423579107,1780248646000,-500.0,0.00018317,2]
[423579115,1780248646000,-500.0,0.00018317,2]
[423579114,1780248646000,-944.99,0.00018317,2]
[423579148,1780248646000,-1807.05,0.0001859,2]
[423579159,1780248646000,-542.05,0.00018591,2]
[423579158,1780248646000,-444.72,0.00018591,2]
[423579151,1780248646000,-500.0,0.00018591,2]
[423579153,1780248646000,-500.0,0.00018591,2]
[423579150,1780248646000,-500.0,0.00018591,2]
[423579154,1780248646000,-603.91,0.00018591,2]
[423579152,1780248646000,-944.99,0.00018591,2]
[423579156,1780248646000,-1670.88,0.00018591,2]
[423579149,1780248646000,-500.0,0.00018591,2]
[423579147,1780248646000,-3745.47,0.0001859,2]
[423579155,1780248646000,-500.0,0.00018591,2]
[423579163,1780248646000,-500.0,0.00018591,2]
[423579145,1780248646000,-1567.21,0.0001859,2]
[423579164,1780248646000,-1448.47969,0.00018599,2]
[423579162,1780248646000,-603.85,0.00018591,2]
[423579161,1780248646000,-572.53,0.00018591,2]
[423579165,1780248646000,-559.57,0.00018833,2]
[423579168,1780248646000,-500.0,0.00018833,2]
[423579171,1780248646000,-500.0,0.00018834,2]
[423579167,1780248646000,-500.0,0.00018833,2]
[423579166,1780248646000,-1028.27,0.00018833,2]
[423579169,1780248646000,-500.0,0.00018834,2]
[423579170,1780248646000,-500.0,0.00018834,2]
[423579173,1780248646000,-500.0,0.00018864,2]
[423579174,1780248646000,-1348.75,0.00018864,2]
[423579172,1780248646000,-591.15,0.00018834,2]
[423579112,1780248646000,-151.0,0.00018317,2]
[423579160,1780248646000,-817.3533,0.00018591,2]
[423579143,1780248646000,-534.45,0.0001859,2]
[423579157,1780248646000,-500.0,0.00018591,2]
[423579146,1780248646000,-500.0,0.0001859,2]
[423579144,1780248646000,-500.0,0.0001859,2]
[423579116,1780248646000,-603.91,0.00018317,2]
[423579117,1780248646000,-500.0,0.00018317,2]
[423579118,1780248646000,-1670.88,0.00018317,2]
[423579119,1780248646000,-500.0,0.00018317,2]
[423579121,1780248646000,-542.05,0.00018317,2]
[423579120,1780248646000,-500.0,0.00018317,2]
[423579130,1780248646000,-1028.27,0.00018559,2]
[423579122,1780248646000,-817.3533,0.00018317,2]
[423579123,1780248646000,-572.53,0.00018317,2]
[423579124,1780248646000,-603.85,0.00018317,2]
[423579131,1780248646000,-500.0,0.00018559,2]
[423579126,1780248646000,-166.66666665,0.000184,2]
[423579127,1780248646000,-185.0,0.00018415,2]
[423579113,1780248646000,-489.2,0.00018317,2]
[423579132,1780248646000,-500.0,0.00018559,2]
[423579128,1780248646000,-191.016808,0.00018493,2]
[423579141,1780248646000,-500.0,0.0001859,2]
[423579140,1780248646000,-391.48,0.0001859,2]
[423579134,1780248646000,-500.0,0.0001856,2]
[423579136,1780248646000,-591.15,0.0001856,2]
[423579137,1780248646000,-500.0,0.0001859,2]
[423579142,1780248646000,-500.0,0.0001859,2]
[423579139,1780248646000,-552.58,0.0001859,2]
[423579135,1780248646000,-500.0,0.0001856,2]
[423579133,1780248646000,-500.0,0.0001856,2]
[423579125,1780248646000,-500.0,0.00018317,2]
[423579129,1780248646000,-559.57,0.00018559,2]
[423579138,1780248646000,-1348.75,0.0001859,2]
[423579220,1780248647000,-501.05788719,0.00018996,2]
[423579215,1780248647000,-500.80680724,0.00018996,2]
[423579216,1780248647000,-500.0,0.00018996,2]
[423579204,1780248647000,-151.0,0.00018866,2]
[423579211,1780248647000,-501.44991635,0.00018996,2]